[Event "*** Titled Tuesday Blitz"]
[Site "Chess.com"]
[Date "2020.05.26"]
[Round "5"]
[White "Tejas_Rama"]
[Black "Perecke"]
[Result "1-0"]
[WhiteElo "2383"]
[BlackElo "2193"]
[TimeControl "180+1"]
[EndTime "10:57:33 PDT"]
[Termination "Tejas_Rama won on time"]

1. Nf3 {[%clk 0:02:57.9]} 1... d5 {[%clk 0:03:00]} 2. c4 {[%clk 0:02:53.9]} 2...
d4 {[%clk 0:02:59.6]} 3. g3 {[%clk 0:02:52.8]} 3... Nc6 {[%clk 0:02:51.1]} 4.
Bg2 {[%clk 0:02:52.1]} 4... e5 {[%clk 0:02:49]} 5. O-O {[%clk 0:02:51.4]} 5...
Nf6 {[%clk 0:02:48.9]} 6. d3 {[%clk 0:02:43.4]} 6... Bc5 {[%clk 0:02:45.9]} 7.
b4 {[%clk 0:02:32.9]} 7... Bxb4 {[%clk 0:02:39.1]} 8. Nxe5 {[%clk 0:02:28.1]}
8... Nxe5 {[%clk 0:02:37.6]} 9. Qa4+ {[%clk 0:02:27.9]} 9... c6 {[%clk
0:02:37.1]} 10. Qxb4 {[%clk 0:02:26]} 10... Qe7 {[%clk 0:02:27.7]} 11. c5 {[%clk
0:02:14.9]} 11... O-O {[%clk 0:02:22.9]} 12. Qxd4 {[%clk 0:02:12.4]} 12... Bg4
{[%clk 0:02:15.6]} 13. f3 {[%clk 0:01:53.6]} 13... Bf5 {[%clk 0:02:01.6]} 14.
Bb2 {[%clk 0:01:47.9]} 14... Rfe8 {[%clk 0:01:56.1]} 15. e4 {[%clk 0:01:44.1]}
15... Bg6 {[%clk 0:01:51.8]} 16. Qxe5 {[%clk 0:01:29.3]} 16... Qxe5 {[%clk
0:01:50.3]} 17. Bxe5 {[%clk 0:01:30.2]} 17... Rxe5 {[%clk 0:01:50.6]} 18. d4
{[%clk 0:01:29.3]} 18... Re7 {[%clk 0:01:48.8]} 19. Na3 {[%clk 0:01:26.1]} 19...
Rd8 {[%clk 0:01:43.1]} 20. Rfd1 {[%clk 0:01:21.2]} 20... Red7 {[%clk 0:01:42.8]}
21. Rab1 {[%clk 0:01:15.1]} 21... Rxd4 {[%clk 0:01:26.2]} 22. Rxd4 {[%clk
0:01:16]} 22... Rxd4 {[%clk 0:01:26.6]} 23. Rxb7 {[%clk 0:01:15.2]} 23... h5
{[%clk 0:01:22.8]} 24. Rxa7 {[%clk 0:01:10.6]} 24... Rd1+ {[%clk 0:01:18.5]} 25.
Bf1 {[%clk 0:01:07]} 25... h4 {[%clk 0:00:57.5]} 26. Nc4 {[%clk 0:01:01]} 26...
hxg3 {[%clk 0:00:55.9]} 27. hxg3 {[%clk 0:01:00.8]} 27... Nh5 {[%clk 0:00:55.8]}
28. Ne3 {[%clk 0:00:52.9]} 28... Rc1 {[%clk 0:00:48.9]} 29. Kf2 {[%clk
0:00:48.1]} 29... Rxc5 {[%clk 0:00:43.4]} 30. Ra8+ {[%clk 0:00:48]} 30... Kh7
{[%clk 0:00:42.3]} 31. a4 {[%clk 0:00:47.1]} 31... Rc1 {[%clk 0:00:39.7]} 32. a5
{[%clk 0:00:44.7]} 32... Ra1 {[%clk 0:00:39.9]} 33. a6 {[%clk 0:00:44.6]} 33...
Ra2+ {[%clk 0:00:39]} 34. Be2 {[%clk 0:00:43.2]} 34... Nxg3 {[%clk 0:00:25.4]}
35. Kxg3 {[%clk 0:00:42.7]} 35... Rxe2 {[%clk 0:00:25.2]} 36. a7 {[%clk
0:00:40.9]} 36... Ra2 {[%clk 0:00:15.8]} 37. Nc4 {[%clk 0:00:39.2]} 37... c5
{[%clk 0:00:13.4]} 38. Nb6 {[%clk 0:00:38.4]} 38... Ra3 {[%clk 0:00:11.2]} 39.
Nc8 {[%clk 0:00:31.9]} 39... Bxe4 {[%clk 0:00:09.9]} 40. Rb8 {[%clk 0:00:30.7]}
40... Rxf3+ {[%clk 0:00:10]} 41. Kg4 {[%clk 0:00:30.1]} 41... f5+ {[%clk
0:00:09.5]} 42. Kg5 {[%clk 0:00:27.6]} 42... Rf1 {[%clk 0:00:09.2]} 43. Nd6
{[%clk 0:00:23.9]} 43... Ra1 {[%clk 0:00:05.9]} 44. Nxe4 {[%clk 0:00:23.1]}
44... Rxa7 {[%clk 0:00:05.9]} 45. Nxc5 {[%clk 0:00:21]} 45... Rc7 {[%clk
0:00:03.3]} 46. Ne6 {[%clk 0:00:20.8]} 46... Ra7 {[%clk 0:00:02]} 47. Rb3 {[%clk
0:00:18.8]} 47... g6 {[%clk 0:00:02.1]} 48. Rh3+ {[%clk 0:00:18.1]} 48... Kg8
{[%clk 0:00:02.4]} 49. Kxg6 {[%clk 0:00:18.2]} 49... f4 {[%clk 0:00:02.6]} 50.
Nxf4 {[%clk 0:00:16.6]} 50... Ra6+ {[%clk 0:00:02.7]} 51. Kf5 {[%clk 0:00:16.4]}
51... Kf7 {[%clk 0:00:02.9]} 52. Rh7+ {[%clk 0:00:16.2]} 52... Ke8 {[%clk
0:00:03.3]} 53. Rb7 {[%clk 0:00:16.8]} 53... Kd8 {[%clk 0:00:02.4]} 54. Rb8+
{[%clk 0:00:16.8]} 54... Kc7 {[%clk 0:00:02.6]} 55. Rb4 {[%clk 0:00:17.3]} 55...
Ra5+ {[%clk 0:00:02.8]} 56. Ke6 {[%clk 0:00:17]} 56... Ra1 {[%clk 0:00:02.9]}
57. Nd5+ {[%clk 0:00:17.3]} 57... Kc6 {[%clk 0:00:02.8]} 58. Rc4+ {[%clk
0:00:17.6]} 58... Kb5 {[%clk 0:00:02.8]} 59. Rc8 {[%clk 0:00:18]} 59... Re1+
{[%clk 0:00:02]} 60. Kd6 {[%clk 0:00:18.5]} 60... Rg1 {[%clk 0:00:02.7]} 61.
Rb8+ {[%clk 0:00:18.9]} 61... Kc4 {[%clk 0:00:02.5]} 62. Rb4+ {[%clk 0:00:18.2]}
62... Kd3 {[%clk 0:00:02.1]} 63. Kc5 {[%clk 0:00:17.5]} 63... Rh1 {[%clk
0:00:01.8]} 64. Rb3+ {[%clk 0:00:17.6]} 64... Ke4 {[%clk 0:00:01.6]} 65. Re3+
{[%clk 0:00:18.1]} 65... Kf5 {[%clk 0:00:01.3]} 66. Rf3+ {[%clk 0:00:18.2]}
66... Ke5 {[%clk 0:00:01.2]} 67. Re3+ {[%clk 0:00:18.4]} 67... Kf5 {[%clk
0:00:01.4]} 68. Re2 {[%clk 0:00:18.8]} 1-0

[Event "*** Titled Tuesday Blitz"]
[Site "Chess.com"]
[Date "2020.05.26"]
[Round "5"]
[White "QueenOfTactics90"]
[Black "imdarealist"]
[Result "1-0"]
[WhiteElo "1964"]
[BlackElo "2214"]
[TimeControl "180+1"]
[EndTime "10:57:34 PDT"]
[Termination "QueenOfTactics90 won by resignation"]

1. e4 {[%clk 0:03:00.9]} 1... e5 {[%clk 0:02:57.7]} 2. Nf3 {[%clk 0:03:00.1]}
2... Nf6 {[%clk 0:02:58.1]} 3. Nxe5 {[%clk 0:02:54.4]} 3... d6 {[%clk
0:02:56.2]} 4. Nf3 {[%clk 0:02:53.2]} 4... Nxe4 {[%clk 0:02:56.6]} 5. Qe2 {[%clk
0:02:53.9]} 5... Qe7 {[%clk 0:02:55.4]} 6. d3 {[%clk 0:02:54.2]} 6... Nc5 {[%clk
0:02:55.4]} 7. Nc3 {[%clk 0:02:48.1]} 7... c6 {[%clk 0:02:53.4]} 8. Bg5 {[%clk
0:02:44.8]} 8... f6 {[%clk 0:02:52.2]} 9. Bf4 {[%clk 0:02:43.5]} 9... Qxe2+
{[%clk 0:02:51.4]} 10. Bxe2 {[%clk 0:02:43]} 10... Be7 {[%clk 0:02:51.8]} 11.
O-O-O {[%clk 0:02:36.9]} 11... O-O {[%clk 0:02:51.8]} 12. Nd4 {[%clk 0:02:29.8]}
12... a5 {[%clk 0:02:48.3]} 13. a4 {[%clk 0:02:27.2]} 13... Re8 {[%clk 0:02:44]}
14. Rde1 {[%clk 0:02:25]} 14... Kf7 {[%clk 0:02:41.5]} 15. h4 {[%clk 0:02:19.9]}
15... g6 {[%clk 0:02:40.9]} 16. h5 {[%clk 0:02:16.2]} 16... g5 {[%clk
0:02:40.7]} 17. Bg3 {[%clk 0:02:16.2]} 17... h6 {[%clk 0:02:38.4]} 18. f4 {[%clk
0:02:15.6]} 18... Ne6 {[%clk 0:02:36.1]} 19. Nxe6 {[%clk 0:02:13.8]} 19... Bxe6
{[%clk 0:02:37]} 20. fxg5 {[%clk 0:02:11.8]} 20... fxg5 {[%clk 0:02:37.9]} 21.
Rhf1+ {[%clk 0:02:06]} 21... Kg7 {[%clk 0:02:38]} 22. Bf3 {[%clk 0:02:02.1]}
22... Bf8 {[%clk 0:02:09.2]} 23. Ne4 {[%clk 0:01:56.8]} 23... d5 {[%clk
0:02:05.9]} 24. Be5+ {[%clk 0:01:54.9]} 24... Kf7 {[%clk 0:02:00.8]} 25. Nc5
{[%clk 0:01:52.7]} 25... Ke7 {[%clk 0:02:01.7]} 26. Nxb7 {[%clk 0:01:50.4]}
26... Nd7 {[%clk 0:01:56.1]} 27. Bd6+ {[%clk 0:01:47.9]} 27... Kf7 {[%clk
0:01:55.8]} 28. Bxd5+ {[%clk 0:01:46.3]} 28... Nf6 {[%clk 0:01:54.3]} 29. Bxc6
{[%clk 0:01:42.9]} 29... Rec8 {[%clk 0:01:49.4]} 30. Be4 {[%clk 0:01:36.1]}
30... Kg7 {[%clk 0:01:37.7]} 31. Bxf8+ {[%clk 0:01:32.9]} 31... Rxf8 {[%clk
0:01:38.6]} 32. Nd6 {[%clk 0:01:31]} 32... Nxe4 {[%clk 0:01:34.5]} 33. dxe4
{[%clk 0:01:25.4]} 33... Rad8 {[%clk 0:01:29.1]} 34. e5 {[%clk 0:01:24.2]} 34...
Rb8 {[%clk 0:01:25.4]} 35. b3 {[%clk 0:01:23.4]} 35... Rf4 {[%clk 0:01:19.2]}
36. g3 {[%clk 0:01:21.3]} 36... Rff8 {[%clk 0:01:19.2]} 37. Kd2 {[%clk
0:01:19.1]} 37... Rbd8 {[%clk 0:01:14.8]} 38. Ke3 {[%clk 0:01:17.5]} 38... Bg4
{[%clk 0:01:06.3]} 39. Rxf8 {[%clk 0:01:15.6]} 39... Rxf8 {[%clk 0:01:06.8]} 40.
Kd4 {[%clk 0:01:07.1]} 40... Bxh5 {[%clk 0:00:55.2]} 41. e6 {[%clk 0:01:06.6]}
41... Rf3 {[%clk 0:00:54.7]} 42. Re3 {[%clk 0:01:05.9]} 42... Rf2 {[%clk
0:00:53.2]} 43. c4 {[%clk 0:01:03.3]} 43... Kf6 {[%clk 0:00:49.7]} 44. e7 {[%clk
0:01:01.8]} 44... Rd2+ {[%clk 0:00:37]} 45. Kc5 {[%clk 0:00:59.7]} 45... Rb2
{[%clk 0:00:34.4]} 46. e8=Q {[%clk 0:00:56.1]} 46... Bxe8 {[%clk 0:00:34.3]} 47.
Nxe8+ {[%clk 0:00:56.7]} 47... Kg6 {[%clk 0:00:33.4]} 48. Nd6 {[%clk 0:00:55.9]}
48... h5 {[%clk 0:00:32.1]} 49. Nb7 {[%clk 0:00:55.5]} 49... Kf5 {[%clk
0:00:27.8]} 50. Nxa5 {[%clk 0:00:53.4]} 50... Kg4 {[%clk 0:00:28.3]} 51. b4
{[%clk 0:00:53.3]} 51... Rg2 {[%clk 0:00:27.8]} 52. b5 {[%clk 0:00:53.2]} 52...
Rxg3 {[%clk 0:00:28.1]} 53. Rxg3+ {[%clk 0:00:52.1]} 53... Kxg3 {[%clk 0:00:29]}
54. b6 {[%clk 0:00:52.5]} 54... h4 {[%clk 0:00:26.3]} 55. b7 {[%clk 0:00:52.8]}
55... Kh3 {[%clk 0:00:25.8]} 56. b8=Q {[%clk 0:00:52.8]} 56... g4 {[%clk
0:00:26.7]} 57. Qc8 {[%clk 0:00:49.7]} 57... Kg3 {[%clk 0:00:26.1]} 58. Nb3
{[%clk 0:00:49.7]} 58... h3 {[%clk 0:00:26.2]} 59. Qc7+ {[%clk 0:00:49.5]} 59...
Kg2 {[%clk 0:00:25.3]} 60. Qc6+ {[%clk 0:00:45.4]} 60... Kg1 {[%clk 0:00:19.1]}
61. Nd2 {[%clk 0:00:43.6]} 61... g3 {[%clk 0:00:15.5]} 62. Qf3 {[%clk
0:00:39.2]} 62... Kh2 {[%clk 0:00:11.1]} 63. Nf1+ {[%clk 0:00:37.6]} 63... Kg1
{[%clk 0:00:11.4]} 64. Qxg3+ {[%clk 0:00:37.5]} 1-0

[Event "*** Titled Tuesday Blitz"]
[Site "Chess.com"]
[Date "2020.05.26"]
[Round "5"]
[White "AungTZ"]
[Black "Roenko_Artur"]
[Result "0-1"]
[WhiteElo "1991"]
[BlackElo "2296"]
[TimeControl "180+1"]
[EndTime "10:57:36 PDT"]
[Termination "Roenko_Artur won by checkmate"]

1. e4 {[%clk 0:03:00.9]} 1... e6 {[%clk 0:02:59.2]} 2. d4 {[%clk 0:03:00.1]}
2... d5 {[%clk 0:02:59.2]} 3. Nc3 {[%clk 0:03:00.6]} 3... Bb4 {[%clk 0:02:58.3]}
4. exd5 {[%clk 0:02:59]} 4... exd5 {[%clk 0:02:57.4]} 5. Bd3 {[%clk 0:02:58.9]}
5... Nc6 {[%clk 0:02:56]} 6. Ne2 {[%clk 0:02:58.6]} 6... Nf6 {[%clk 0:02:54.6]}
7. O-O {[%clk 0:02:58.1]} 7... O-O {[%clk 0:02:53.3]} 8. Bg5 {[%clk 0:02:56.3]}
8... Be7 {[%clk 0:02:49.5]} 9. h3 {[%clk 0:02:28.8]} 9... h6 {[%clk 0:02:41.7]}
10. Bf4 {[%clk 0:02:27.4]} 10... Be6 {[%clk 0:02:37]} 11. Re1 {[%clk 0:02:23.6]}
11... Qd7 {[%clk 0:02:31.8]} 12. Bg3 {[%clk 0:02:16.7]} 12... Bf5 {[%clk
0:02:19.1]} 13. a3 {[%clk 0:02:05.8]} 13... Rac8 {[%clk 0:02:06.5]} 14. Qd2
{[%clk 0:02:01.9]} 14... Rfe8 {[%clk 0:01:33.3]} 15. Rad1 {[%clk 0:01:44.7]}
15... Bf8 {[%clk 0:01:31.6]} 16. Bxf5 {[%clk 0:01:37.5]} 16... Qxf5 {[%clk
0:01:30.6]} 17. Nf4 {[%clk 0:01:37.4]} 17... Bd6 {[%clk 0:01:11.1]} 18. Nfe2
{[%clk 0:01:27.7]} 18... Ne4 {[%clk 0:01:01.3]} 19. Nxe4 {[%clk 0:01:25.6]}
19... dxe4 {[%clk 0:00:49.4]} 20. Bxd6 {[%clk 0:01:21]} 20... cxd6 {[%clk
0:00:49.1]} 21. d5 {[%clk 0:01:19.9]} 21... Nb8 {[%clk 0:00:29.2]} 22. Ng3
{[%clk 0:01:19.1]} 22... Qg6 {[%clk 0:00:29.1]} 23. c3 {[%clk 0:01:14.2]} 23...
f5 {[%clk 0:00:28.7]} 24. Qf4 {[%clk 0:01:09.5]} 24... Rf8 {[%clk 0:00:26.2]}
25. f3 {[%clk 0:01:06.5]} 25... Rce8 {[%clk 0:00:22]} 26. Kh2 {[%clk 0:00:57.8]}
26... Nd7 {[%clk 0:00:20.7]} 27. fxe4 {[%clk 0:00:54.8]} 27... fxe4 {[%clk
0:00:20.2]} 28. Qg4 {[%clk 0:00:54.2]} 28... Qxg4 {[%clk 0:00:18.5]} 29. hxg4
{[%clk 0:00:55]} 29... Nf6 {[%clk 0:00:17.5]} 30. Nf5 {[%clk 0:00:53.7]} 30...
Nxg4+ {[%clk 0:00:16.7]} 31. Kg3 {[%clk 0:00:51.8]} 31... Rxf5 {[%clk
0:00:15.9]} 32. Kxg4 {[%clk 0:00:52.3]} 32... Rfe5 {[%clk 0:00:16]} 33. Re3
{[%clk 0:00:51.2]} 33... Kh7 {[%clk 0:00:11.4]} 34. c4 {[%clk 0:00:50.3]} 34...
g5 {[%clk 0:00:11.3]} 35. Rf1 {[%clk 0:00:49.2]} 35... Kg6 {[%clk 0:00:10.5]}
36. Kg3 {[%clk 0:00:46.7]} 36... h5 {[%clk 0:00:10.3]} 37. Rc1 {[%clk
0:00:45.1]} 37... h4+ {[%clk 0:00:09]} 38. Kf2 {[%clk 0:00:44.6]} 38... g4
{[%clk 0:00:08.3]} 39. Ke2 {[%clk 0:00:44.5]} 39... Kg5 {[%clk 0:00:08.1]} 40.
Rf1 {[%clk 0:00:44]} 40... Rf5 {[%clk 0:00:07.9]} 41. Rxf5+ {[%clk 0:00:40.3]}
41... Kxf5 {[%clk 0:00:07.8]} 42. b4 {[%clk 0:00:39.4]} 42... b6 {[%clk
0:00:07]} 43. Rc3 {[%clk 0:00:38.9]} 43... Ke5 {[%clk 0:00:05.4]} 44. Ke3 {[%clk
0:00:39]} 44... Rf8 {[%clk 0:00:04.8]} 45. Rc1 {[%clk 0:00:37.9]} 45... h3
{[%clk 0:00:04.5]} 46. gxh3 {[%clk 0:00:36.3]} 46... gxh3 {[%clk 0:00:05.4]} 47.
Rg1 {[%clk 0:00:35.9]} 47... Rf3+ {[%clk 0:00:05.6]} 48. Ke2 {[%clk 0:00:34.8]}
48... h2 {[%clk 0:00:05.8]} 49. Rh1 {[%clk 0:00:34.1]} 49... Rh3 {[%clk
0:00:05.5]} 50. Kf2 {[%clk 0:00:33.9]} 50... Kd4 {[%clk 0:00:05.6]} 51. Kg2
{[%clk 0:00:30.3]} 51... Rh5 {[%clk 0:00:05.8]} 52. Rd1+ {[%clk 0:00:29.7]}
52... Kxc4 {[%clk 0:00:05.8]} 53. Kh1 {[%clk 0:00:29.3]} 53... e3 {[%clk
0:00:04.5]} 54. Re1 {[%clk 0:00:30.2]} 54... Kd3 {[%clk 0:00:04.3]} 55. Rd1+
{[%clk 0:00:29.9]} 55... Kc2 {[%clk 0:00:04.3]} 56. Rf1 {[%clk 0:00:28.8]} 56...
e2 {[%clk 0:00:04.3]} 57. Rf2 {[%clk 0:00:28.6]} 57... Kd1 {[%clk 0:00:04.3]}
58. Rxe2 {[%clk 0:00:27.7]} 58... Kxe2 {[%clk 0:00:05.2]} 59. b5 {[%clk
0:00:27.3]} 59... Ke3 {[%clk 0:00:05]} 60. a4 {[%clk 0:00:28.2]} 60... Kd4
{[%clk 0:00:05.1]} 61. a5 {[%clk 0:00:27.6]} 61... bxa5 {[%clk 0:00:05.2]} 62.
b6 {[%clk 0:00:28.5]} 62... axb6 {[%clk 0:00:05.9]} 63. Kg2 {[%clk 0:00:28.2]}
63... h1=Q+ {[%clk 0:00:05.6]} 64. Kg3 {[%clk 0:00:29.1]} 64... Qh3+ {[%clk
0:00:05.2]} 65. Kf4 {[%clk 0:00:28.1]} 65... Rf5# {[%clk 0:00:06.1]} 0-1

[Event "*** Titled Tuesday Blitz"]
[Site "Chess.com"]
[Date "2020.05.26"]
[Round "5"]
[White "Anna_ChessMate"]
[Black "Zurability"]
[Result "0-1"]
[WhiteElo "2529"]
[BlackElo "2720"]
[TimeControl "180+1"]
[EndTime "10:57:37 PDT"]
[Termination "Zurability won on time"]

1. d4 {[%clk 0:03:00.9]} 1... Nf6 {[%clk 0:02:57.2]} 2. c4 {[%clk 0:03:00.5]}
2... e6 {[%clk 0:02:57.4]} 3. Nf3 {[%clk 0:03:00.4]} 3... b6 {[%clk 0:02:53.7]}
4. g3 {[%clk 0:03:00.4]} 4... Bb7 {[%clk 0:02:53.4]} 5. Bg2 {[%clk 0:03:00]}
5... Bb4+ {[%clk 0:02:47.9]} 6. Bd2 {[%clk 0:02:55.2]} 6... Bxd2+ {[%clk
0:02:46.5]} 7. Nbxd2 {[%clk 0:02:55.3]} 7... O-O {[%clk 0:02:45.6]} 8. O-O
{[%clk 0:02:54]} 8... d6 {[%clk 0:02:46.2]} 9. Qc2 {[%clk 0:02:52.5]} 9... Nbd7
{[%clk 0:02:44.1]} 10. e4 {[%clk 0:02:52.5]} 10... e5 {[%clk 0:02:43.8]} 11.
Rfe1 {[%clk 0:02:52.7]} 11... g6 {[%clk 0:02:34.3]} 12. Rad1 {[%clk 0:02:51.2]}
12... Re8 {[%clk 0:02:29.3]} 13. b4 {[%clk 0:02:31.4]} 13... Qe7 {[%clk
0:02:27.1]} 14. c5 {[%clk 0:02:14.8]} 14... dxc5 {[%clk 0:02:18.2]} 15. bxc5
{[%clk 0:02:14.1]} 15... bxc5 {[%clk 0:02:11.8]} 16. dxe5 {[%clk 0:02:11]} 16...
Nxe5 {[%clk 0:01:41.3]} 17. Nxe5 {[%clk 0:02:10.6]} 17... Qxe5 {[%clk
0:01:42.2]} 18. Nc4 {[%clk 0:02:10.7]} 18... Qe6 {[%clk 0:01:39.4]} 19. Na5
{[%clk 0:01:07.3]} 19... Bxe4 {[%clk 0:01:28.8]} 20. Qxc5 {[%clk 0:01:07.1]}
20... Qb6 {[%clk 0:01:24.6]} 21. Qa3 {[%clk 0:00:40.1]} 21... Bxg2 {[%clk
0:01:21.1]} 22. Kxg2 {[%clk 0:00:41]} 22... Ng4 {[%clk 0:01:04.6]} 23. Rxe8+
{[%clk 0:00:23]} 23... Rxe8 {[%clk 0:01:03]} 24. Rd2 {[%clk 0:00:23.9]} 24... c5
{[%clk 0:00:38.8]} 25. Qa4 {[%clk 0:00:20.5]} 25... Rf8 {[%clk 0:00:24.6]} 26.
h3 {[%clk 0:00:14.5]} 26... Ne5 {[%clk 0:00:22.8]} 27. Re2 {[%clk 0:00:14.5]}
27... Nd3 {[%clk 0:00:21]} 28. Nc6 {[%clk 0:00:12]} 28... Nb4 {[%clk 0:00:16.1]}
29. Ne7+ {[%clk 0:00:10.7]} 29... Kg7 {[%clk 0:00:16.1]} 30. Qb3 {[%clk
0:00:11]} 30... Qf6 {[%clk 0:00:13.8]} 31. a3 {[%clk 0:00:10.2]} 31... Na6
{[%clk 0:00:10.9]} 32. Nd5 {[%clk 0:00:10.4]} 32... Qc6 {[%clk 0:00:09.9]} 33.
Kh2 {[%clk 0:00:09.9]} 33... c4 {[%clk 0:00:09.5]} 34. Qc3+ {[%clk 0:00:09.6]}
34... f6 {[%clk 0:00:10]} 35. Ne7 {[%clk 0:00:06.3]} 35... Qc5 {[%clk 0:00:09]}
36. Qf3 {[%clk 0:00:05.7]} 36... Rf7 {[%clk 0:00:08.1]} 37. Qb7 {[%clk
0:00:03.3]} 37... Nc7 {[%clk 0:00:06.7]} 38. Nc8 {[%clk 0:00:02.4]} 38... Nd5
{[%clk 0:00:06.1]} 39. Qb8 {[%clk 0:00:02.5]} 39... c3 {[%clk 0:00:05.8]} 40.
Nd6 {[%clk 0:00:03]} 40... Rd7 {[%clk 0:00:05.4]} 41. Ne8+ {[%clk 0:00:02.7]}
41... Kh6 {[%clk 0:00:05.9]} 42. Qb1 {[%clk 0:00:01.3]} 42... c2 {[%clk
0:00:03.7]} 43. Qc1+ {[%clk 0:00:01.9]} 43... g5 {[%clk 0:00:04.2]} 44. h4
{[%clk 0:00:01.2]} 44... Qc6 {[%clk 0:00:01.8]} 45. hxg5+ {[%clk 0:00:02.1]}
45... fxg5 {[%clk 0:00:02.3]} 46. Qd2 {[%clk 0:00:01.8]} 46... Re7 {[%clk
0:00:02.8]} 47. Rxe7 {[%clk 0:00:01.3]} 47... Nxe7 {[%clk 0:00:03.7]} 48. Nd6
{[%clk 0:00:01.7]} 48... Qd5 {[%clk 0:00:03.8]} 49. Qd4 {[%clk 0:00:02.6]} 49...
Qxd4 {[%clk 0:00:04.1]} 50. Nf7+ {[%clk 0:00:02.9]} 50... Kg7 {[%clk 0:00:03.9]}
51. Nxg5 {[%clk 0:00:03.1]} 51... Qxf2+ {[%clk 0:00:04.4]} 52. Kh3 {[%clk
0:00:03.1]} 52... c1=Q {[%clk 0:00:05.3]} 53. Kh4 {[%clk 0:00:03.4]} 53... Kg8
{[%clk 0:00:05.9]} 54. Nh3 {[%clk 0:00:01.4]} 54... Qh2 {[%clk 0:00:06.3]} 55.
Kg4 {[%clk 0:00:01]} 55... Qc4+ {[%clk 0:00:07.2]} 0-1

[Event "*** Titled Tuesday Blitz"]
[Site "Chess.com"]
[Date "2020.05.26"]
[Round "5"]
[White "Kobalia"]
[Black "zubridis"]
[Result "1-0"]
[WhiteElo "2789"]
[BlackElo "2453"]
[TimeControl "180+1"]
[EndTime "10:57:38 PDT"]
[Termination "Kobalia won on time"]

1. e4 {[%clk 0:03:00.9]} 1... c5 {[%clk 0:02:59.5]} 2. Nf3 {[%clk 0:03:00.4]}
2... d6 {[%clk 0:02:59.6]} 3. Bb5+ {[%clk 0:02:59.8]} 3... Nd7 {[%clk
0:02:53.9]} 4. O-O {[%clk 0:02:59]} 4... Nf6 {[%clk 0:02:50.3]} 5. Re1 {[%clk
0:02:57.4]} 5... a6 {[%clk 0:02:49.8]} 6. Bf1 {[%clk 0:02:56.4]} 6... b6 {[%clk
0:02:45.7]} 7. d4 {[%clk 0:02:55.3]} 7... cxd4 {[%clk 0:02:43.7]} 8. Nxd4 {[%clk
0:02:55.5]} 8... Bb7 {[%clk 0:02:42.4]} 9. c4 {[%clk 0:02:55.3]} 9... Nxe4
{[%clk 0:02:34.3]} 10. Qf3 {[%clk 0:02:54.1]} 10... Ne5 {[%clk 0:02:10.8]} 11.
Qf4 {[%clk 0:02:44.6]} 11... Nf6 {[%clk 0:02:03.9]} 12. Nc3 {[%clk 0:02:41.9]}
12... e6 {[%clk 0:01:56.6]} 13. Qg3 {[%clk 0:02:40.1]} 13... Rc8 {[%clk
0:01:53.7]} 14. b3 {[%clk 0:02:17.2]} 14... b5 {[%clk 0:01:53.5]} 15. f4 {[%clk
0:02:11.9]} 15... Qb6 {[%clk 0:01:45]} 16. Be3 {[%clk 0:01:23.7]} 16... Neg4
{[%clk 0:01:44]} 17. Kh1 {[%clk 0:01:23.2]} 17... Nxe3 {[%clk 0:01:40.9]} 18.
Qxe3 {[%clk 0:01:23.2]} 18... Be7 {[%clk 0:01:19.3]} 19. Nxe6 {[%clk 0:01:11.1]}
19... Qxe3 {[%clk 0:01:16.5]} 20. Nxg7+ {[%clk 0:01:10.2]} 20... Kf8 {[%clk
0:01:11.6]} 21. Rxe3 {[%clk 0:01:11.1]} 21... Ng4 {[%clk 0:01:10.5]} 22. Rg3
{[%clk 0:01:09.9]} 22... Bf6 {[%clk 0:00:49.4]} 23. Nf5 {[%clk 0:01:08.3]} 23...
Nf2+ {[%clk 0:00:32.4]} 24. Kg1 {[%clk 0:01:07.5]} 24... Ne4 {[%clk 0:00:22.9]}
25. Nxe4 {[%clk 0:01:00.4]} 25... Bxa1 {[%clk 0:00:19.3]} 26. Nexd6 {[%clk
0:01:00]} 26... Rc7 {[%clk 0:00:18]} 27. cxb5 {[%clk 0:00:50.2]} 27... axb5
{[%clk 0:00:17.9]} 28. Bxb5 {[%clk 0:00:45.9]} 28... Rg8 {[%clk 0:00:15.8]} 29.
Rxg8+ {[%clk 0:00:23.8]} 29... Kxg8 {[%clk 0:00:16.7]} 30. Nxb7 {[%clk
0:00:23.6]} 30... Rxb7 {[%clk 0:00:14.1]} 31. Bc4 {[%clk 0:00:23.7]} 31... Rd7
{[%clk 0:00:11.8]} 32. g3 {[%clk 0:00:20.3]} 32... Rd2 {[%clk 0:00:11.2]} 33. a4
{[%clk 0:00:19.4]} 33... Kf8 {[%clk 0:00:11.5]} 34. a5 {[%clk 0:00:19.3]} 34...
Bc3 {[%clk 0:00:10.3]} 35. a6 {[%clk 0:00:19]} 35... Bb4 {[%clk 0:00:10.9]} 36.
h4 {[%clk 0:00:17.6]} 36... Bc5+ {[%clk 0:00:10.9]} 37. Kf1 {[%clk 0:00:17.7]}
37... Ke8 {[%clk 0:00:10.5]} 38. Ke1 {[%clk 0:00:16.2]} 38... Rb2 {[%clk
0:00:09.4]} 39. Kd1 {[%clk 0:00:16]} 39... Kd7 {[%clk 0:00:08.5]} 40. Kc1 {[%clk
0:00:16]} 40... Rh2 {[%clk 0:00:07.5]} 41. Bxf7 {[%clk 0:00:15.9]} 41... Kc7
{[%clk 0:00:06.6]} 42. Bc4 {[%clk 0:00:15.6]} 42... Kb6 {[%clk 0:00:06.4]} 43.
Kd1 {[%clk 0:00:14.2]} 43... Ka5 {[%clk 0:00:06.5]} 44. Ke1 {[%clk 0:00:13.8]}
44... Kb4 {[%clk 0:00:06.8]} 45. Kf1 {[%clk 0:00:13.6]} 45... Kc3 {[%clk
0:00:07]} 46. h5 {[%clk 0:00:09.3]} 46... Kd2 {[%clk 0:00:06.6]} 47. Nh4 {[%clk
0:00:05.3]} 47... Rf2+ {[%clk 0:00:05.6]} 48. Kg1 {[%clk 0:00:05.5]} 48... Rxf4+
{[%clk 0:00:04.4]} 49. Kh2 {[%clk 0:00:05.8]} 49... Rf2+ {[%clk 0:00:04]} 50.
Kh3 {[%clk 0:00:05.9]} 50... Ke3 {[%clk 0:00:04.3]} 51. Kg4 {[%clk 0:00:05.7]}
51... h6 {[%clk 0:00:03.8]} 52. Nf5+ {[%clk 0:00:05]} 52... Ke4 {[%clk
0:00:04.2]} 53. Nxh6 {[%clk 0:00:05]} 53... Rg2 {[%clk 0:00:03]} 54. Nf7 {[%clk
0:00:04.7]} 54... Bb6 {[%clk 0:00:02.4]} 55. Ng5+ {[%clk 0:00:04.7]} 55... Ke3
{[%clk 0:00:01.6]} 56. h6 {[%clk 0:00:05]} 56... Bc7 {[%clk 0:00:01.3]} 57. h7
{[%clk 0:00:05.5]} 57... Rxg3+ {[%clk 0:00:01.6]} 58. Kf5 {[%clk 0:00:05.9]} 1-0